[Event "Titled Tuesday Blitz May 16 Late 2023"]
[White "WindWhistler11"]
[Black "Goltsev, Dmitry"]
[BlackFideId "24176710"]
[WhiteElo "2524"]
[BlackElo "2356"]
[Result "0-1"]
[Round "08"]
[TimeControl "180+2"]
[Date "2023.05.16"]
[WhiteClock "0:00:52"]
[BlackClock "0:00:05"]

1. Nf3 {[%clk 0:03:00]}  d6 {[%clk 0:02:59]} 2. g3 {[%clk 0:03:00]}  e5 {[%clk 0:02:59]} 3. Bg2 {[%clk 0:03:00]}  Nf6 {[%clk 0:02:59]} 4. c4 {[%clk 0:02:59]}  c5 {[%clk 0:02:58]} 5. Nc3 {[%clk 0:02:54]}  Nc6 {[%clk 0:02:58]} 6. a3 {[%clk 0:02:54]}  Nd4 {[%clk 0:02:58]} 7. b4 {[%clk 0:02:47]}  Bf5 {[%clk 0:02:55]} 8. d3 {[%clk 0:02:45]}  Nd7 {[%clk 0:02:06]} 9. Nh4 {[%clk 0:02:38]}  Be6 {[%clk 0:02:00]} 10. Bxb7 {[%clk 0:02:29]}  Rb8 {[%clk 0:01:59]} 11. Bg2 {[%clk 0:02:29]}  Be7 {[%clk 0:01:52]} 12. Nf3 {[%clk 0:02:15]}  h5 {[%clk 0:01:41]} 13. h4 {[%clk 0:02:12]}  f6 {[%clk 0:01:36]} 14. b5 {[%clk 0:02:08]}  Nf8 {[%clk 0:01:25]} 15. a4 {[%clk 0:02:04]}  g5 {[%clk 0:01:22]} 16. a5 {[%clk 0:02:00]}  Ng6 {[%clk 0:01:20]} 17. Ne4 {[%clk 0:01:44]}  Nxf3+ {[%clk 0:01:08]} 18. Bxf3 {[%clk 0:01:40]}  gxh4 {[%clk 0:01:08]} 19. gxh4 {[%clk 0:01:40]}  f5 {[%clk 0:00:45]} 20. Ng5 {[%clk 0:01:29]}  Bd7 {[%clk 0:00:32]} 21. Bxh5 {[%clk 0:01:29]}  Rxh5 {[%clk 0:00:30]} 22. e4 {[%clk 0:01:26]}  Rh8 {[%clk 0:00:25]} 23. exf5 {[%clk 0:01:21]}  Bxf5 {[%clk 0:00:26]} 24. Qf3 {[%clk 0:01:21]}  Qd7 {[%clk 0:00:21]} 25. b6 {[%clk 0:01:12]}  a6 {[%clk 0:00:13]} 26. Qd5 {[%clk 0:01:10]}  Bxg5 {[%clk 0:00:04]} 27. Bxg5 {[%clk 0:01:11]}  Be6 {[%clk 0:00:04]} 28. Qe4 {[%clk 0:01:11]}  Bf5 {[%clk 0:00:04]} 29. Qd4 {[%clk 0:01:11]}  exd4 {[%clk 0:00:04]} 30. Kd1 {[%clk 0:01:11]}  Bxd3 {[%clk 0:00:05]} 31. Kd2 {[%clk 0:01:11]}  Qf5 {[%clk 0:00:05]} 32. Rae1+ {[%clk 0:01:12]}  Kf7 {[%clk 0:00:05]} 33. Rh2 {[%clk 0:01:12]}  Rbe8 {[%clk 0:00:05]} 34. f4 {[%clk 0:01:13]}  Rxe1 {[%clk 0:00:05]} 35. Kxe1 {[%clk 0:01:13]}  Re8+ {[%clk 0:00:06]} 36. Kd1 {[%clk 0:00:55]}  Nxf4 {[%clk 0:00:06]} 37. Rf2 {[%clk 0:00:53]}  Re4 {[%clk 0:00:05]} 38. Kc1 {[%clk 0:00:51]}  Bxc4 {[%clk 0:00:04]} 39. Kb2 {[%clk 0:00:52]}  Nd3+ {[%clk 0:00:04]} 40. Ka3 {[%clk 0:00:52]}  Qxf2 {[%clk 0:00:05]} 41. Bd2 {[%clk 0:00:51]}  Qxd2 {[%clk 0:00:05]} 42. b7 {[%clk 0:00:52]}  Qa2# {[%clk 0:00:05]} 0-1


[Site "https://www.chess.com"]

[Event "Titled Tuesday Blitz May 16 Late 2023"]
[White "Chen, Ryo"]
[Black "Deviprasath, Sharvesh"]
[WhiteFideId "7003072"]
[BlackFideId "30938228"]
[WhiteElo "2169"]
[BlackElo "2168"]
[Result "0-1"]
[Round "08"]
[TimeControl "180+2"]
[Date "2023.05.16"]
[WhiteClock "0:00:43"]
[BlackClock "0:01:14"]

1. e4 {[%clk 0:03:00]}  c5 {[%clk 0:02:58]} 2. Nf3 {[%clk 0:03:00]}  e6 {[%clk 0:02:57]} 3. d4 {[%clk 0:03:01]}  cxd4 {[%clk 0:02:58]} 4. Nxd4 {[%clk 0:03:01]}  a6 {[%clk 0:02:56]} 5. Nc3 {[%clk 0:03:01]}  b5 {[%clk 0:02:55]} 6. Bd3 {[%clk 0:03:00]}  Bb7 {[%clk 0:02:55]} 7. O-O {[%clk 0:03:00]}  Nc6 {[%clk 0:02:55]} 8. Nxc6 {[%clk 0:02:58]}  Bxc6 {[%clk 0:02:56]} 9. Re1 {[%clk 0:02:58]}  d6 {[%clk 0:02:55]} 10. a4 {[%clk 0:02:46]}  b4 {[%clk 0:02:50]} 11. Nd5 {[%clk 0:02:43]}  a5 {[%clk 0:02:30]} 12. Be3 {[%clk 0:02:15]}  Rb8 {[%clk 0:02:28]} 13. Bd4 {[%clk 0:02:08]}  Nf6 {[%clk 0:02:21]} 14. Nxf6+ {[%clk 0:02:07]}  gxf6 {[%clk 0:02:19]} 15. c3 {[%clk 0:02:01]}  e5 {[%clk 0:02:12]} 16. Be3 {[%clk 0:01:57]}  bxc3 {[%clk 0:01:57]} 17. bxc3 {[%clk 0:01:54]}  Bg7 {[%clk 0:01:56]} 18. Qg4 {[%clk 0:01:50]}  Rg8 {[%clk 0:01:53]} 19. Bc4 {[%clk 0:01:42]}  Qd7 {[%clk 0:01:50]} 20. Qh4 {[%clk 0:01:39]}  h6 {[%clk 0:01:47]} 21. g3 {[%clk 0:01:27]}  Rc8 {[%clk 0:01:38]} 22. Bb5 {[%clk 0:01:22]}  f5 {[%clk 0:01:26]} 23. Bxc6 {[%clk 0:01:19]}  Rxc6 {[%clk 0:01:25]} 24. exf5 {[%clk 0:01:18]}  Qxf5 {[%clk 0:01:25]} 25. c4 {[%clk 0:00:43]}  Bf6 {[%clk 0:01:14]} 0-1


[Site "https://www.chess.com"]

[Event "Titled Tuesday Blitz May 16 Late 2023"]
[White "Martic, Ivan"]
[Black "Gritsenko, Nikolai"]
[WhiteFideId "929301"]
[BlackFideId "14112493"]
[WhiteElo "2360"]
[BlackElo "2389"]
[Result "1/2-1/2"]
[Round "08"]
[TimeControl "180+2"]
[Date "2023.05.16"]
[WhiteClock "0:00:17"]
[BlackClock "0:00:09"]

1. e4 {[%clk 0:02:56]}  d6 {[%clk 0:02:59]} 2. d4 {[%clk 0:02:56]}  Nf6 {[%clk 0:02:59]} 3. Nc3 {[%clk 0:02:56]}  g6 {[%clk 0:03:00]} 4. Nf3 {[%clk 0:02:57]}  Bg7 {[%clk 0:03:00]} 5. Be2 {[%clk 0:02:57]}  O-O {[%clk 0:03:00]} 6. O-O {[%clk 0:02:57]}  e6 {[%clk 0:03:00]} 7. Re1 {[%clk 0:02:55]}  b6 {[%clk 0:02:57]} 8. a4 {[%clk 0:02:54]}  a6 {[%clk 0:02:56]} 9. h3 {[%clk 0:02:54]}  Bb7 {[%clk 0:02:56]} 10. Bf1 {[%clk 0:02:54]}  Nc6 {[%clk 0:02:51]} 11. Bg5 {[%clk 0:02:52]}  h6 {[%clk 0:02:51]} 12. Be3 {[%clk 0:02:50]}  Ne7 {[%clk 0:02:48]} 13. e5 {[%clk 0:02:48]}  Nfd5 {[%clk 0:02:43]} 14. Bd2 {[%clk 0:02:39]}  dxe5 {[%clk 0:02:24]} 15. Nxe5 {[%clk 0:02:34]}  c5 {[%clk 0:02:09]} 16. dxc5 {[%clk 0:02:31]}  bxc5 {[%clk 0:02:09]} 17. Nc4 {[%clk 0:02:29]}  Qc7 {[%clk 0:01:55]} 18. Ne4 {[%clk 0:02:25]}  a5 {[%clk 0:01:47]} 19. Ned6 {[%clk 0:02:20]}  Nb4 {[%clk 0:01:43]} 20. c3 {[%clk 0:02:11]}  Nbd5 {[%clk 0:01:40]} 21. Qc1 {[%clk 0:02:10]}  Kh7 {[%clk 0:01:38]} 22. Nxb7 {[%clk 0:02:05]}  Qxb7 {[%clk 0:01:37]} 23. Ne5 {[%clk 0:02:02]}  Nc6 {[%clk 0:01:23]} 24. Nxc6 {[%clk 0:01:58]}  Qxc6 {[%clk 0:01:23]} 25. Bb5 {[%clk 0:01:59]}  Qb7 {[%clk 0:01:19]} 26. Qc2 {[%clk 0:01:59]}  Rab8 {[%clk 0:01:15]} 27. Rab1 {[%clk 0:01:58]}  Rfc8 {[%clk 0:01:06]} 28. h4 {[%clk 0:01:56]}  h5 {[%clk 0:01:05]} 29. g3 {[%clk 0:01:52]}  Nc7 {[%clk 0:00:56]} 30. Bd3 {[%clk 0:01:47]}  Qc6 {[%clk 0:00:51]} 31. Bf4 {[%clk 0:01:44]}  c4 {[%clk 0:00:47]} 32. Be4 {[%clk 0:01:43]}  Qc5 {[%clk 0:00:47]} 33. Rbd1 {[%clk 0:01:41]}  Rd8 {[%clk 0:00:46]} 34. Bg5 {[%clk 0:01:35]}  Rxd1 {[%clk 0:00:43]} 35. Rxd1 {[%clk 0:01:36]}  Nd5 {[%clk 0:00:43]} 36. Qe2 {[%clk 0:01:26]}  Kg8 {[%clk 0:00:33]} 37. Bg2 {[%clk 0:01:10]}  Qc6 {[%clk 0:00:31]} 38. Qc2 {[%clk 0:01:05]}  Rb3 {[%clk 0:00:30]} 39. Kh2 {[%clk 0:00:55]}  Qxa4 {[%clk 0:00:26]} 40. Bxd5 {[%clk 0:00:52]}  exd5 {[%clk 0:00:26]} 41. Rxd5 {[%clk 0:00:53]}  Qa2 {[%clk 0:00:24]} 42. Bc1 {[%clk 0:00:46]}  Rxc3 {[%clk 0:00:20]} 43. Rd8+ {[%clk 0:00:46]}  Kh7 {[%clk 0:00:20]} 44. Qe2 {[%clk 0:00:40]}  Rxc1 {[%clk 0:00:18]} 45. Qe8 {[%clk 0:00:36]}  Qxb2 {[%clk 0:00:18]} 46. Qxf7 {[%clk 0:00:33]}  Rc2 {[%clk 0:00:13]} 47. Kg2 {[%clk 0:00:31]}  a4 {[%clk 0:00:13]} 48. Rd6 {[%clk 0:00:29]}  Rxf2+ {[%clk 0:00:12]} 49. Qxf2 {[%clk 0:00:30]}  Qxf2+ {[%clk 0:00:11]} 50. Kxf2 {[%clk 0:00:31]}  a3 {[%clk 0:00:11]} 51. Ra6 {[%clk 0:00:29]}  Bb2 {[%clk 0:00:09]} 52. Ke2 {[%clk 0:00:28]}  c3 {[%clk 0:00:09]} 53. Kd3 {[%clk 0:00:27]}  Kg7 {[%clk 0:00:09]} 54. Kc2 {[%clk 0:00:26]}  Kf7 {[%clk 0:00:09]} 55. Kb3 {[%clk 0:00:26]}  Kg7 {[%clk 0:00:10]} 56. Rc6 {[%clk 0:00:24]}  Kf7 {[%clk 0:00:09]} 57. Ra6 {[%clk 0:00:24]}  c2 {[%clk 0:00:09]} 58. Kxc2 {[%clk 0:00:24]}  Kg7 {[%clk 0:00:09]} 59. Kb3 {[%clk 0:00:23]}  Be5 {[%clk 0:00:08]} 60. Kxa3 {[%clk 0:00:19]}  Bxg3 {[%clk 0:00:08]} 61. Ra4 {[%clk 0:00:20]}  Kf6 {[%clk 0:00:08]} 62. Kb3 {[%clk 0:00:20]}  Kf5 {[%clk 0:00:08]} 63. Kc2 {[%clk 0:00:19]}  Bf4 {[%clk 0:00:08]} 64. Kd3 {[%clk 0:00:19]}  Kg4 {[%clk 0:00:08]} 65. Ke2 {[%clk 0:00:19]}  Kg3 {[%clk 0:00:08]} 66. Rc4 {[%clk 0:00:18]}  Kg4 {[%clk 0:00:08]} 67. Kf2 {[%clk 0:00:18]}  Kf5 {[%clk 0:00:08]} 68. Kf3 {[%clk 0:00:17]}  Be5 {[%clk 0:00:08]} 69. Rc5 {[%clk 0:00:17]}  Ke6 {[%clk 0:00:07]} 70. Ke4 {[%clk 0:00:16]}  Bf6 {[%clk 0:00:08]} 71. Rc6+ {[%clk 0:00:16]}  Kf7 {[%clk 0:00:08]} 72. Rc7+ {[%clk 0:00:12]}  Ke6 {[%clk 0:00:08]} 73. Rc6+ {[%clk 0:00:12]}  Ke7 {[%clk 0:00:08]} 74. Kf3 {[%clk 0:00:10]}  Kf7 {[%clk 0:00:08]} 75. Kg3 {[%clk 0:00:10]}  Kg7 {[%clk 0:00:09]} 76. Rc7+ {[%clk 0:00:10]}  Kf8 {[%clk 0:00:08]} 77. Rd7 {[%clk 0:00:10]}  Kg8 {[%clk 0:00:09]} 78. Rb7 {[%clk 0:00:10]}  Kf8 {[%clk 0:00:09]} 79. Kh3 {[%clk 0:00:09]}  Kg8 {[%clk 0:00:09]} 80. Rb8+ {[%clk 0:00:09]}  Kf7 {[%clk 0:00:09]} 81. Rb7+ {[%clk 0:00:10]}  Kf8 {[%clk 0:00:09]} 82. Rb6 {[%clk 0:00:10]}  Kf7 {[%clk 0:00:09]} 83. Rb7+ {[%clk 0:00:11]}  Kf8 {[%clk 0:00:09]} 84. Ra7 {[%clk 0:00:12]}  Kg8 {[%clk 0:00:09]} 85. Ra6 {[%clk 0:00:12]}  Kf7 {[%clk 0:00:09]} 86. Rc6 {[%clk 0:00:13]}  Ke7 {[%clk 0:00:09]} 87. Rc4 {[%clk 0:00:12]}  Kf7 {[%clk 0:00:09]} 88. Kg3 {[%clk 0:00:13]}  Kg7 {[%clk 0:00:09]} 89. Kf3 {[%clk 0:00:13]}  Kf7 {[%clk 0:00:09]} 90. Rc7+ {[%clk 0:00:14]}  Ke6 {[%clk 0:00:09]} 91. Rc4 {[%clk 0:00:15]}  Kf7 {[%clk 0:00:09]} 92. Kg3 {[%clk 0:00:15]}  Kg7 {[%clk 0:00:09]} 93. Kh3 {[%clk 0:00:15]}  Kf7 {[%clk 0:00:09]} 94. Ra4 {[%clk 0:00:15]}  Kg7 {[%clk 0:00:09]} 95. Kg3 {[%clk 0:00:16]}  Kf7 {[%clk 0:00:10]} 96. Kf3 {[%clk 0:00:16]}  Kg7 {[%clk 0:00:09]} 97. Ke3 {[%clk 0:00:16]}  Kf7 {[%clk 0:00:09]} 98. Kd3 {[%clk 0:00:16]}  Ke6 {[%clk 0:00:09]} 99. Ke3 {[%clk 0:00:16]}  Kf7 {[%clk 0:00:09]} 100. Kf3 {[%clk 0:00:16]}  Ke6 {[%clk 0:00:09]} 101. Kg2 {[%clk 0:00:16]}  Kf7 {[%clk 0:00:09]} 102. Kh3 {[%clk 0:00:17]}  Kg7 {[%clk 0:00:10]} 103. Ra7+ {[%clk 0:00:17]}  Kg8 {[%clk 0:00:09]} 104. Rb7 {[%clk 0:00:17]}  Kf8 {[%clk 0:00:09]} 1/2-1/2


[Site "https://www.chess.com"]

[Event "Titled Tuesday Blitz May 16 Late 2023"]
[White "Maltsevskaya, Aleksandra"]
[Black "Koutlas, Nikolaos"]
[WhiteFideId "24174041"]
[BlackFideId "25827138"]
[WhiteElo "2302"]
[BlackElo "2215"]
[Result "1-0"]
[Round "08"]
[TimeControl "180+2"]
[Date "2023.05.16"]
[WhiteClock "0:00:01"]
[BlackClock "0:00:00"]

1. Nf3 {[%clk 0:02:44]}  Nf6 {[%clk 0:02:55]} 2. g3 {[%clk 0:02:45]}  b6 {[%clk 0:02:53]} 3. Bg2 {[%clk 0:02:46]}  Bb7 {[%clk 0:02:54]} 4. O-O {[%clk 0:02:46]}  g6 {[%clk 0:02:54]} 5. d3 {[%clk 0:02:47]}  Bg7 {[%clk 0:02:54]} 6. Nbd2 {[%clk 0:02:48]}  O-O {[%clk 0:02:54]} 7. e4 {[%clk 0:02:48]}  c5 {[%clk 0:02:54]} 8. a4 {[%clk 0:02:49]}  Nc6 {[%clk 0:02:54]} 9. Nc4 {[%clk 0:02:49]}  d5 {[%clk 0:02:53]} 10. exd5 {[%clk 0:02:49]}  Nxd5 {[%clk 0:02:54]} 11. a5 {[%clk 0:02:50]}  b5 {[%clk 0:02:53]} 12. a6 {[%clk 0:02:51]}  Bc8 {[%clk 0:02:49]} 13. Ne3 {[%clk 0:02:51]}  Ndb4 {[%clk 0:02:38]} 14. Ne1 {[%clk 0:02:32]}  Qd7 {[%clk 0:02:22]} 15. c3 {[%clk 0:02:31]}  Nxa6 {[%clk 0:02:21]} 16. Qf3 {[%clk 0:02:15]}  Nab8 {[%clk 0:02:18]} 17. N1c2 {[%clk 0:02:04]}  a6 {[%clk 0:02:15]} 18. d4 {[%clk 0:02:02]}  cxd4 {[%clk 0:01:58]} 19. cxd4 {[%clk 0:02:03]}  Bb7 {[%clk 0:01:52]} 20. Nd5 {[%clk 0:00:40]}  Qd8 {[%clk 0:01:27]} 21. Rd1 {[%clk 0:00:32]}  Ra7 {[%clk 0:00:54]} 22. Bf4 {[%clk 0:00:29]}  Na5 {[%clk 0:00:45]} 23. Qa3 {[%clk 0:00:13]}  Bxd5 {[%clk 0:00:30]} 24. Bxd5 {[%clk 0:00:13]}  Qxd5 {[%clk 0:00:22]} 25. Qxa5 {[%clk 0:00:13]}  Nc6 {[%clk 0:00:19]} 26. Qb6 {[%clk 0:00:12]}  Raa8 {[%clk 0:00:16]} 27. Ne3 {[%clk 0:00:11]}  Qf3 {[%clk 0:00:15]} 28. d5 {[%clk 0:00:09]}  Nb4 {[%clk 0:00:13]} 29. Qc5 {[%clk 0:00:06]}  a5 {[%clk 0:00:12]} 30. Qxe7 {[%clk 0:00:04]}  Bxb2 {[%clk 0:00:11]} 31. Rab1 {[%clk 0:00:04]}  Bg7 {[%clk 0:00:10]} 32. d6 {[%clk 0:00:05]}  Rfe8 {[%clk 0:00:10]} 33. Qg5 {[%clk 0:00:04]}  h6 {[%clk 0:00:07]} 34. Qxb5 {[%clk 0:00:04]}  Rab8 {[%clk 0:00:05]} 35. Qc4 {[%clk 0:00:03]}  Re4 {[%clk 0:00:03]} 36. Qf1 {[%clk 0:00:02]}  Rxf4 {[%clk 0:00:03]} 37. gxf4 {[%clk 0:00:03]}  Qxf4 {[%clk 0:00:04]} 38. d7 {[%clk 0:00:02]}  Rd8 {[%clk 0:00:03]} 39. Qg2 {[%clk 0:00:03]}  Be5 {[%clk 0:00:03]} 40. Rbc1 {[%clk 0:00:03]}  Kg7 {[%clk 0:00:02]} 41. Rc8 {[%clk 0:00:03]}  Qf6 {[%clk 0:00:03]} 42. Rxd8 {[%clk 0:00:03]}  Qxd8 {[%clk 0:00:03]} 43. Qe4 {[%clk 0:00:04]}  Bc7 {[%clk 0:00:02]} 44. Qc4 {[%clk 0:00:04]}  Kg8 {[%clk 0:00:02]} 45. Rc1 {[%clk 0:00:03]}  Qg5+ {[%clk 0:00:02]} 46. Qg4 {[%clk 0:00:03]}  Qe5 {[%clk 0:00:02]} 47. d8=Q+ {[%clk 0:00:01]}  Bxd8 {[%clk 0:00:02]} 48. Rc8 {[%clk 0:00:02]}  Qe7 {[%clk 0:00:01]} 49. Qd4 {[%clk 0:00:02]}  Nc6 {[%clk 0:00:01]} 50. Rxc6 {[%clk 0:00:02]}  Qg5+ {[%clk 0:00:01]} 51. Kf1 {[%clk 0:00:02]}  Kh7 {[%clk 0:00:02]} 52. Rc8 {[%clk 0:00:02]}  Qb5+ {[%clk 0:00:02]} 53. Kg2 {[%clk 0:00:01]}  Qg5+ {[%clk 0:00:02]} 54. Kf3 {[%clk 0:00:02]}  Qf5+ {[%clk 0:00:00]} 55. Nxf5 {[%clk 0:00:01]} 1-0


[Site "https://www.chess.com"]

[Event "Titled Tuesday Blitz May 16 Late 2023"]
[White "Kaplan, Avi Harrison"]
[Black "Vlassov, Nikolai"]
[WhiteFideId "30934559"]
[BlackFideId "4103360"]
[WhiteElo "1983"]
[BlackElo "2324"]
[Result "0-1"]
[Round "08"]
[TimeControl "180+2"]
[Date "2023.05.16"]
[WhiteClock "0:00:01"]
[BlackClock "0:00:09"]

1. g3 {[%clk 0:03:00]}  h5 {[%clk 0:02:59]} 2. Bg2 {[%clk 0:03:01]}  h4 {[%clk 0:02:58]} 3. d4 {[%clk 0:02:59]}  d5 {[%clk 0:02:56]} 4. Bf4 {[%clk 0:02:54]}  h3 {[%clk 0:02:56]} 5. Bf3 {[%clk 0:02:52]}  f6 {[%clk 0:02:56]} 6. e4 {[%clk 0:02:49]}  Be6 {[%clk 0:02:26]} 7. exd5 {[%clk 0:02:39]}  Bxd5 {[%clk 0:02:25]} 8. Bh5+ {[%clk 0:02:40]}  Bf7 {[%clk 0:02:21]} 9. Bxf7+ {[%clk 0:02:40]}  Kxf7 {[%clk 0:02:22]} 10. Nf3 {[%clk 0:02:39]}  g5 {[%clk 0:02:18]} 11. Bxg5 {[%clk 0:02:34]}  fxg5 {[%clk 0:02:03]} 12. Nxg5+ {[%clk 0:02:31]}  Ke8 {[%clk 0:02:02]} 13. Qf3 {[%clk 0:02:21]}  Nf6 {[%clk 0:01:57]} 14. Qxb7 {[%clk 0:02:19]}  Nbd7 {[%clk 0:01:24]} 15. Ne6 {[%clk 0:02:08]}  Qb8 {[%clk 0:01:18]} 16. Qxa8 {[%clk 0:01:44]}  Qxa8 {[%clk 0:01:18]} 17. Nxc7+ {[%clk 0:01:44]}  Kd8 {[%clk 0:01:18]} 18. Nxa8 {[%clk 0:01:45]}  Kc8 {[%clk 0:01:18]} 19. Nc3 {[%clk 0:01:32]}  Kb7 {[%clk 0:01:17]} 20. Kd2 {[%clk 0:01:32]}  Kxa8 {[%clk 0:01:17]} 21. Rae1 {[%clk 0:01:31]}  Bh6+ {[%clk 0:01:08]} 22. Kd3 {[%clk 0:01:30]}  e5 {[%clk 0:01:02]} 23. dxe5 {[%clk 0:01:07]}  Ng4 {[%clk 0:01:02]} 24. e6 {[%clk 0:01:08]}  Nc5+ {[%clk 0:00:51]} 25. Kc4 {[%clk 0:01:02]}  Rc8 {[%clk 0:00:48]} 26. f3 {[%clk 0:01:02]}  Ne3+ {[%clk 0:00:38]} 27. Rxe3 {[%clk 0:00:39]}  Bxe3 {[%clk 0:00:37]} 28. Re1 {[%clk 0:00:38]}  Bd2 {[%clk 0:00:38]} 29. Re2 {[%clk 0:00:34]}  Nxe6+ {[%clk 0:00:35]} 30. Kd3 {[%clk 0:00:30]}  Rd8+ {[%clk 0:00:31]} 31. Kc4 {[%clk 0:00:30]}  Rd4+ {[%clk 0:00:28]} 32. Kb3 {[%clk 0:00:28]}  Nc5+ {[%clk 0:00:25]} 33. Ka3 {[%clk 0:00:29]}  a5 {[%clk 0:00:15]} 34. Re8+ {[%clk 0:00:14]}  Kb7 {[%clk 0:00:14]} 35. Re7+ {[%clk 0:00:10]}  Kc6 {[%clk 0:00:14]} 36. b4 {[%clk 0:00:01]}  axb4+ {[%clk 0:00:12]} 37. Kb2 {[%clk 0:00:02]}  Bxc3+ {[%clk 0:00:11]} 38. Kc1 {[%clk 0:00:03]}  Na4 {[%clk 0:00:09]} 39. Re6+ {[%clk 0:00:01]}  Kd5 {[%clk 0:00:09]} 40. Re8 {[%clk 0:00:01]}  Bb2+ {[%clk 0:00:09]} 41. Kb1 {[%clk 0:00:01]}  Rd1# {[%clk 0:00:09]} 0-1


[Site "https://www.chess.com"]

[Event "Titled Tuesday Blitz May 16 Late 2023"]
[White "Mendez Fortes, Eduardo Jesus"]
[Black "Toniutti, Ezio"]
[WhiteFideId "3502376"]
[BlackFideId "113034"]
[WhiteElo "2307"]
[BlackElo "2215"]
[Result "1-0"]
[Round "08"]
[TimeControl "180+2"]
[Date "2023.05.16"]
[WhiteClock "0:01:35"]
[BlackClock "0:00:23"]

1. e4 {[%clk 0:03:00]}  e5 {[%clk 0:02:57]} 2. Nf3 {[%clk 0:03:00]}  Nc6 {[%clk 0:02:56]} 3. Bb5 {[%clk 0:03:01]}  a6 {[%clk 0:02:57]} 4. Ba4 {[%clk 0:03:01]}  d6 {[%clk 0:02:57]} 5. c3 {[%clk 0:03:01]}  f5 {[%clk 0:02:56]} 6. exf5 {[%clk 0:02:57]}  Bxf5 {[%clk 0:02:55]} 7. O-O {[%clk 0:02:56]}  Bd3 {[%clk 0:02:53]} 8. Re1 {[%clk 0:02:55]}  Be7 {[%clk 0:02:53]} 9. Bc2 {[%clk 0:02:54]}  Bxc2 {[%clk 0:02:52]} 10. Qxc2 {[%clk 0:02:55]}  Nf6 {[%clk 0:02:51]} 11. d4 {[%clk 0:02:55]}  e4 {[%clk 0:02:52]} 12. Ng5 {[%clk 0:02:55]}  d5 {[%clk 0:02:52]} 13. f3 {[%clk 0:02:54]}  h6 {[%clk 0:02:45]} 14. Nh3 {[%clk 0:02:54]}  O-O {[%clk 0:02:42]} 15. Nd2 {[%clk 0:02:51]}  exf3 {[%clk 0:02:41]} 16. Nxf3 {[%clk 0:02:51]}  Ne4 {[%clk 0:02:34]} 17. Qb3 {[%clk 0:02:50]}  Na5 {[%clk 0:02:29]} 18. Qa4 {[%clk 0:02:48]}  Nc6 {[%clk 0:02:28]} 19. Qb3 {[%clk 0:02:48]}  Na5 {[%clk 0:02:24]} 20. Qc2 {[%clk 0:02:45]}  Nc6 {[%clk 0:02:22]} 21. Nf4 {[%clk 0:02:40]}  Qd6 {[%clk 0:02:06]} 22. Nd3 {[%clk 0:02:40]}  Rxf3 {[%clk 0:01:46]} 23. gxf3 {[%clk 0:02:39]}  Qg6+ {[%clk 0:01:41]} 24. Qg2 {[%clk 0:02:39]}  Ng5 {[%clk 0:01:33]} 25. Bxg5 {[%clk 0:02:33]}  Bxg5 {[%clk 0:01:32]} 26. Ne5 {[%clk 0:02:30]}  Qf5 {[%clk 0:01:25]} 27. f4 {[%clk 0:02:25]}  Bxf4 {[%clk 0:01:12]} 28. Qxd5+ {[%clk 0:02:22]}  Kh7 {[%clk 0:01:08]} 29. Qe4 {[%clk 0:02:22]}  Qxe4 {[%clk 0:01:04]} 30. Rxe4 {[%clk 0:02:22]}  Bxe5 {[%clk 0:01:01]} 31. dxe5 {[%clk 0:02:21]}  Re8 {[%clk 0:00:51]} 32. e6 {[%clk 0:02:19]}  Re7 {[%clk 0:00:49]} 33. Rd1 {[%clk 0:02:16]}  Kg6 {[%clk 0:00:49]} 34. Rd7 {[%clk 0:02:15]}  Kf6 {[%clk 0:00:49]} 35. Kg2 {[%clk 0:02:04]}  Nb8 {[%clk 0:00:41]} 36. Rd8 {[%clk 0:02:01]}  Nc6 {[%clk 0:00:38]} 37. Rf8+ {[%clk 0:02:01]}  Kg6 {[%clk 0:00:38]} 38. Rg4+ {[%clk 0:01:59]}  Kh7 {[%clk 0:00:38]} 39. Rf7 {[%clk 0:01:57]}  Rxe6 {[%clk 0:00:31]} 40. Rgxg7+ {[%clk 0:01:56]}  Kh8 {[%clk 0:00:32]} 41. Rh7+ {[%clk 0:01:56]}  Kg8 {[%clk 0:00:32]} 42. Rfg7+ {[%clk 0:01:57]}  Kf8 {[%clk 0:00:32]} 43. Rxc7 {[%clk 0:01:57]}  Ne7 {[%clk 0:00:31]} 44. Rxb7 {[%clk 0:01:35]}  Ng6 {[%clk 0:00:23]} 1-0


[Site "https://www.chess.com"]

[Event "Titled Tuesday Blitz May 16 Late 2023"]
[White "Yeritsyan, Hayk"]
[Black "TimGrutter03"]
[WhiteFideId "13307320"]
[WhiteElo "2451"]
[BlackElo "2635"]
[Result "0-1"]
[Round "08"]
[TimeControl "180+2"]
[Date "2023.05.16"]
[WhiteClock "0:00:00"]
[BlackClock "0:00:13"]

1. d4 {[%clk 0:02:57]}  g6 {[%clk 0:03:00]} 2. Nf3 {[%clk 0:02:56]}  Bg7 {[%clk 0:03:01]} 3. Bf4 {[%clk 0:02:56]}  d6 {[%clk 0:03:01]} 4. h3 {[%clk 0:02:56]}  b6 {[%clk 0:02:55]} 5. e3 {[%clk 0:02:56]}  Bb7 {[%clk 0:02:55]} 6. c3 {[%clk 0:02:54]}  e6 {[%clk 0:02:55]} 7. Be2 {[%clk 0:02:54]}  Ne7 {[%clk 0:02:55]} 8. O-O {[%clk 0:02:54]}  O-O {[%clk 0:02:56]} 9. Bh2 {[%clk 0:02:45]}  Nd7 {[%clk 0:02:55]} 10. Nbd2 {[%clk 0:02:45]}  a6 {[%clk 0:02:55]} 11. Rc1 {[%clk 0:02:44]}  b5 {[%clk 0:02:54]} 12. a4 {[%clk 0:02:44]}  bxa4 {[%clk 0:02:48]} 13. Qxa4 {[%clk 0:02:45]}  Nb6 {[%clk 0:02:45]} 14. Qc2 {[%clk 0:02:42]}  a5 {[%clk 0:02:37]} 15. Ra1 {[%clk 0:02:41]}  Qd7 {[%clk 0:02:33]} 16. b3 {[%clk 0:02:37]}  Rfc8 {[%clk 0:02:17]} 17. Qb2 {[%clk 0:02:32]}  c5 {[%clk 0:02:15]} 18. Rfb1 {[%clk 0:02:27]}  cxd4 {[%clk 0:02:12]} 19. cxd4 {[%clk 0:02:28]}  Ned5 {[%clk 0:02:07]} 20. Nc4 {[%clk 0:02:24]}  Nxc4 {[%clk 0:02:00]} 21. bxc4 {[%clk 0:02:22]}  Nb4 {[%clk 0:02:01]} 22. Rxa5 {[%clk 0:02:09]}  Rxa5 {[%clk 0:02:02]} 23. Qxb4 {[%clk 0:02:10]}  Bxf3 {[%clk 0:01:53]} 24. Bxf3 {[%clk 0:01:59]}  Ra4 {[%clk 0:01:52]} 25. Qxd6 {[%clk 0:01:52]}  Qxd6 {[%clk 0:01:51]} 26. Bxd6 {[%clk 0:01:53]}  Raxc4 {[%clk 0:01:52]} 27. g4 {[%clk 0:01:49]}  Rc1+ {[%clk 0:01:51]} 28. Rxc1 {[%clk 0:01:48]}  Rxc1+ {[%clk 0:01:52]} 29. Kg2 {[%clk 0:01:49]}  Bf8 {[%clk 0:01:52]} 30. Bxf8 {[%clk 0:01:47]}  Kxf8 {[%clk 0:01:50]} 31. g5 {[%clk 0:01:47]}  Ke7 {[%clk 0:01:40]} 32. h4 {[%clk 0:01:44]}  Kd6 {[%clk 0:01:38]} 33. Be4 {[%clk 0:01:39]}  e5 {[%clk 0:01:34]} 34. dxe5+ {[%clk 0:01:33]}  Kxe5 {[%clk 0:01:35]} 35. Ba8 {[%clk 0:01:28]}  Kf5 {[%clk 0:01:17]} 36. Bd5 {[%clk 0:01:02]}  Rc7 {[%clk 0:01:00]} 37. Kf3 {[%clk 0:00:53]}  f6 {[%clk 0:01:01]} 38. gxf6 {[%clk 0:00:38]}  Kxf6 {[%clk 0:01:01]} 39. Kg4 {[%clk 0:00:36]}  h5+ {[%clk 0:00:31]} 40. Kf4 {[%clk 0:00:28]}  Rc1 {[%clk 0:00:30]} 41. Kg3 {[%clk 0:00:22]}  Rg1+ {[%clk 0:00:29]} 42. Kh2 {[%clk 0:00:19]}  Rg4 {[%clk 0:00:26]} 43. Kh3 {[%clk 0:00:17]}  Ke5 {[%clk 0:00:24]} 44. Ba8 {[%clk 0:00:13]}  Ra4 {[%clk 0:00:21]} 45. f4+ {[%clk 0:00:12]}  Kf5 {[%clk 0:00:18]} 46. Bc6 {[%clk 0:00:09]}  Ra3 {[%clk 0:00:17]} 47. Bd7+ {[%clk 0:00:09]}  Kf6 {[%clk 0:00:16]} 48. Kg3 {[%clk 0:00:08]}  Rxe3+ {[%clk 0:00:16]} 49. Kg2 {[%clk 0:00:08]}  Ra3 {[%clk 0:00:15]} 50. Bc8 {[%clk 0:00:06]}  Rd3 {[%clk 0:00:15]} 51. Bh3 {[%clk 0:00:02]}  Rxh3 {[%clk 0:00:11]} 52. Kxh3 {[%clk 0:00:03]}  Kf5 {[%clk 0:00:12]} 53. Kg3 {[%clk 0:00:03]}  Ke4 {[%clk 0:00:12]} 54. f5 {[%clk 0:00:03]}  gxf5 {[%clk 0:00:13]} 55. Kf2 {[%clk 0:00:03]}  Kf4 {[%clk 0:00:13]} 56. Kg2 {[%clk 0:00:04]}  Kg4 {[%clk 0:00:12]} 57. Kh2 {[%clk 0:00:05]}  Kxh4 {[%clk 0:00:12]} 58. Kg2 {[%clk 0:00:00]}  Kg4 {[%clk 0:00:13]} 0-1


[Site "https://www.chess.com"]